bitfinex-derivatives/quotes_BNBF0:USTF0_20251002
["timestamp","ask_amount","ask_price","bid_price","bid_amount"]
[1759421066283,0.16437463,1059.4,1057.0,0.6259913]
[1759421066284,0.84629776,1058.9,1057.0,0.6259913]
[1759421066484,0.84629776,1059.1,1056.8,0.6259913]
[1759421066886,0.84629776,1059.0,1056.6,0.6259913]
[1759421067182,0.84629776,1058.9,1056.7,2.29797648]
[1759421067383,0.84629776,1058.8,1056.7,2.30197648]
[1759421067585,0.84629776,1058.6,1056.7,2.30197648]
[1759421067986,0.84629776,1058.7,1056.7,2.30197648]
[1759421068895,0.84629776,1058.6,1056.7,2.30197648]
[1759421069094,0.84629776,1058.7,1056.7,2.30197648]
[1759421069391,0.84629776,1058.6,1056.7,2.30197648]
[1759421070090,0.84629776,1058.9,1056.8,0.6259913]
[1759421071396,0.84629776,1058.8,1056.9,0.6259913]
[1759421072798,0.84629776,1059.1,1056.7,1.67598518]
[1759421073097,0.84629776,1059.1,1056.7,2.29715485]
[1759421073595,0.84629776,1058.5,1056.7,2.29715485]
[1759421074500,0.84629776,1058.6,1056.7,2.29715485]
[1759421075399,0.84629776,1058.6,1056.7,1.67598518]
[1759421076400,0.84629776,1058.5,1056.7,1.67598518]
[1759421077198,0.84629776,1058.4,1056.7,1.67598518]
[1759421077399,0.84629776,1058.5,1056.7,1.67598518]
[1759421077598,0.84629776,1058.3,1056.7,1.67598518]
[1759421077801,0.84629776,1058.1,1056.7,1.67598518]
[1759421078299,0.84629776,1058.2,1056.7,1.67598518]
[1759421078502,0.84629776,1058.1,1056.7,1.67598518]
[1759421079503,0.84629776,1058.3,1056.7,1.67598518]
[1759421080402,0.84629776,1058.4,1056.7,1.67598518]
[1759421080600,0.84629776,1058.2,1056.7,1.67598518]
[1759421080800,0.84629776,1058.5,1056.7,1.67598518]
[1759421081001,0.84629776,1058.6,1056.7,1.67598518]
[1759421082304,0.84629776,1058.5,1056.7,1.67598518]
[1759421083406,0.84629776,1058.7,1056.7,1.67598518]
[1759421083603,0.84629776,1059.0,1056.7,1.67598518]
[1759421083804,0.84629776,1059.1,1056.7,1.67598518]
[1759421084607,0.84629776,1059.0,1056.7,1.67598518]
[1759421084805,0.84629776,1059.1,1056.7,1.67598518]
[1759421085004,0.84629776,1059.0,1056.7,1.67598518]
[1759421085606,0.84629776,1058.9,1056.7,1.67598518]
[1759421085804,0.84629776,1058.7,1056.7,1.67598518]
[1759421087508,0.84629776,1058.8,1056.7,1.67598518]
[1759421087705,0.84629776,1058.9,1056.7,1.67598518]
[1759421090304,0.84629776,1059.0,1056.7,1.67598518]
[1759421090509,0.84629776,1059.1,1056.7,1.67598518]
[1759421091408,0.84629776,1058.9,1056.7,1.67598518]
[1759421092407,0.84629776,1059.0,1056.7,1.67598518]
[1759421094310,0.84629776,1059.1,1056.7,1.67598518]
[1759421095413,0.84629776,1059.0,1056.7,1.67598518]
[1759421095911,0.84629776,1059.1,1056.7,1.67598518]
[1759421098711,1.2694466,1059.3,1056.7,1.67598518]
[1759421098712,0.84629776,1059.0,1056.7,1.67598518]
[1759421098915,0.84629776,1059.1,1056.7,1.67598518]
[1759421100213,0.84629776,1059.0,1056.7,2.29741147]
[1759421100417,0.84629776,1059.0,1056.7,1.67598518]
[1759421100617,0.84629776,1059.1,1056.7,1.67598518]
[1759421100917,0.84629776,1058.9,1056.7,1.67598518]
[1759421101413,0.84629776,1058.6,1056.7,1.67598518]
[1759421101914,0.84629776,1058.4,1056.7,1.67598518]
[1759421102318,0.84629776,1058.3,1056.7,1.67598518]
[1759421103117,0.84629776,1058.5,1056.7,1.67598518]
[1759421103917,0.84629776,1058.4,1056.7,1.67598518]
[1759421104919,0.84629776,1058.1,1056.7,1.67598518]
[1759421106615,0.84629776,1058.2,1056.7,1.67598518]
[1759421106816,0.84629776,1058.3,1056.7,1.67598518]
[1759421108720,0.84629776,1058.4,1056.7,1.67598518]
[1759421109327,0.84629776,1058.3,1056.7,1.67598518]
[1759421114228,0.84629776,1058.3,1055.6,0.16450362]
[1759421114427,0.84629776,1058.2,1055.6,0.16450362]
[1759421114724,0.84629776,1058.1,1055.6,0.16450362]
[1759421115324,0.84629776,1058.0,1055.6,0.16450362]
[1759421115722,0.84629776,1058.0,1055.6,1.72239768]
[1759421115927,0.84629776,1058.0,1055.6,1.72639768]
[1759421118325,0.84629776,1057.9,1055.6,1.72639768]
[1759421118629,0.84629776,1058.0,1055.6,1.72639768]
[1759421119023,0.84629776,1057.9,1055.6,1.72639768]
[1759421119228,0.84629776,1058.0,1055.6,1.72639768]
[1759421119630,0.84629776,1057.9,1055.6,1.72639768]
[1759421119829,0.84629776,1057.6,1055.6,1.72639768]
[1759421120029,1.2694466,1057.8,1055.6,1.72639768]
[1759421120030,0.84629776,1057.5,1055.6,1.72639768]
[1759421120425,1.2694466,1057.7,1055.6,1.72639768]
[1759421120426,0.84629776,1057.6,1055.6,1.72639768]
[1759421121530,0.84629776,1057.7,1055.6,1.72639768]
[1759421122329,0.84629776,1057.4,1055.6,1.72639768]
[1759421123229,0.84629776,1057.5,1055.6,1.72639768]
[1759421123730,0.84629776,1057.4,1055.6,1.72639768]
[1759421124127,2.1157444,1058.5,1055.6,1.72639768]
[1759421124128,0.84629776,1057.5,1055.6,1.72639768]
[1759421125834,0.84629776,1057.6,1055.6,1.72639768]
[1759421126437,0.84629776,1057.7,1055.6,1.72639768]
[1759421126636,0.84629776,1057.8,1055.6,1.72639768]
[1759421128840,2.1157444,1058.9,1055.6,1.72639768]
[1759421128841,0.84629776,1057.7,1055.6,1.72639768]
[1759421130440,0.84629776,1057.9,1055.6,1.72639768]
[1759421130641,0.84629776,1057.8,1055.6,1.72639768]
[1759421130941,0.84629776,1057.9,1055.6,1.72639768]
[1759421133142,0.84629776,1057.8,1055.6,1.72639768]
[1759421133343,0.84629776,1057.9,1055.6,1.72639768]
[1759421133748,0.84629776,1057.8,1055.6,1.72639768]
[1759421134046,0.84629776,1057.9,1055.6,1.72639768]
[1759421135944,0.84629776,1057.8,1055.6,1.72639768]
[1759421139849,0.84629776,1057.7,1055.6,1.72639768]
[1759421140849,0.84629776,1057.8,1055.6,1.72639768]
[1759421142753,2.1157444,1059.0,1055.6,1.72639768]
[1759421142754,0.84629776,1057.7,1055.6,1.72639768]
[1759421143353,0.84629776,1057.8,1055.6,1.72639768]
[1759421143853,0.84629776,1057.9,1055.6,1.72639768]
[1759421146358,0.84629776,1057.8,1055.6,1.72639768]
[1759421148357,0.84629776,1057.9,1055.6,1.72639768]
[1759421150853,0.84629776,1058.0,1055.6,1.72639768]
[1759421151158,0.84629776,1057.9,1055.6,1.72639768]
[1759421151655,0.84629776,1057.8,1055.6,1.72639768]
[1759421152360,0.84629776,1057.6,1055.6,1.72639768]
[1759421152658,0.84629776,1057.5,1055.6,1.72639768]
[1759421155160,0.84629776,1057.6,1055.6,1.72639768]
[1759421155657,0.84629776,1057.7,1055.6,1.72639768]
[1759421155961,2.1157444,1059.0,1055.6,1.72639768]
[1759421155962,0.84629776,1057.6,1055.6,1.72639768]
[1759421156761,0.84629776,1057.6,1055.6,2.34580431]
[1759421157259,0.84629776,1057.7,1055.6,2.34580431]
[1759421157465,0.84629776,1057.6,1055.7,0.61940663]
[1759421157659,0.84629776,1057.7,1055.8,0.61940663]
[1759421157863,0.84629776,1057.6,1055.7,0.61940663]
[1759421158162,0.84629776,1057.8,1055.7,0.61940663]
[1759421158363,0.84629776,1057.8,1055.8,0.61940663]
[1759421159364,0.84629776,1057.7,1055.8,0.61940663]
[1759421160664,0.84629776,1057.8,1055.9,0.61940663]
[1759421160863,0.84629776,1057.7,1055.9,0.61940663]
[1759421161566,0.84629776,1057.7,1056.0,0.61940663]
[1759421162365,0.84629776,1057.7,1056.1,0.61940663]
[1759421162866,0.84629776,1057.9,1056.2,0.61940663]
[1759421163662,0.84629776,1057.9,1056.3,0.61940663]
[1759421163861,0.84629776,1058.0,1056.4,0.61940663]
[1759421164267,0.84629776,1058.0,1056.3,0.61940663]
[1759421164963,0.84629776,1058.1,1056.3,0.61940663]
[1759421165268,0.84629776,1058.3,1056.2,0.61940663]
[1759421166965,0.84629776,1058.4,1056.4,0.61940663]
[1759421168567,0.84629776,1058.3,1056.4,0.61940663]
[1759421168768,0.84629776,1058.4,1056.5,0.61940663]
[1759421169166,0.84629776,1058.3,1056.5,0.61940663]
[1759421169970,0.84629776,1058.5,1056.6,0.61940663]
[1759421170265,0.84629776,1058.6,1056.6,0.61940663]
[1759421170766,1.2694466,1058.8,1055.6,1.72639768]
[1759421170767,0.84629776,1058.7,1056.7,0.61940663]
[1759421171367,0.84629776,1058.7,1056.6,0.61940663]
[1759421171672,0.84629776,1058.6,1056.6,0.61940663]
[1759421172473,0.84629776,1058.7,1056.7,0.61940663]
[1759421173472,0.84629776,1058.8,1056.7,0.61940663]
[1759421173677,0.84629776,1058.9,1056.8,0.61940663]
[1759421173972,0.84629776,1059.0,1056.8,0.61940663]
[1759421174174,0.84629776,1059.0,1056.7,0.61940663]
[1759421175376,0.84629776,1059.1,1056.7,0.61940663]
[1759421176573,0.84629776,1059.1,1056.8,0.61940663]
[1759421176778,0.84629776,1059.2,1056.8,0.61940663]
[1759421177076,0.84629776,1059.1,1056.8,0.61940663]
[1759421177276,0.84629776,1059.2,1056.8,0.61940663]
[1759421178282,0.84629776,1059.3,1056.8,0.61940663]
[1759421179781,1.01067239,1059.4,1056.7,0.61940663]
[1759421180283,0.16437463,1059.4,1056.7,0.61940663]
[1759421181479,0.16437463,1059.4,1056.6,0.61940663]
[1759421182279,0.16437463,1059.4,1056.7,0.61940663]
[1759421183385,0.16437463,1059.4,1056.8,0.61940663]
[1759421183581,0.16437463,1059.4,1056.5,0.61940663]
[1759421183885,0.16437463,1059.4,1055.6,1.72639768]
[1759421183886,0.16437463,1059.4,1056.8,0.61940663]
[1759421185386,0.16437463,1059.4,1056.7,0.61940663]
[1759421185585,0.16437463,1059.4,1056.8,0.61940663]
[1759421186084,0.16437463,1059.4,1056.9,0.61940663]
[1759421186688,0.16437463,1059.4,1056.8,0.61940663]
[1759421190190,0.16437463,1059.4,1056.7,0.61940663]
[1759421190590,0.16437463,1059.4,1056.8,0.61940663]
[1759421191090,0.16437463,1059.4,1056.9,0.61940663]
[1759421191288,0.16437463,1059.4,1056.8,0.61940663]
[1759421191789,0.16437463,1059.4,1056.9,0.61940663]
[1759421191987,0.16437463,1059.4,1056.8,0.61940663]
[1759421192891,0.84629776,1060.7,1056.6,0.61940663]
[1759421193089,0.84629776,1060.9,1056.8,0.61940663]
[1759421193294,0.16434901,1059.6,1056.8,0.61940663]
[1759421193494,0.84629776,1060.9,1056.8,0.61940663]
[1759421193690,0.16431953,1059.6,1056.8,0.61940663]
[1759421193991,0.84629776,1060.9,1056.8,0.61940663]
[1759421194190,0.84629776,1060.9,1056.7,0.61940663]
[1759421194390,0.16431953,1059.6,1056.7,0.61940663]
[1759421194592,0.84629776,1060.9,1056.7,0.61940663]
[1759421194794,0.16432069,1059.7,1056.7,0.61940663]
[1759421195095,0.84629776,1060.9,1056.7,0.61940663]
[1759421195389,0.16431797,1059.7,1056.8,0.61940663]
[1759421195595,0.84629776,1060.9,1056.8,0.61940663]
[1759421195990,0.16431022,1059.7,1056.8,0.61940663]
[1759421196191,0.84629776,1060.9,1056.8,0.61940663]
[1759421196396,0.16431409,1059.7,1056.8,0.61940663]
[1759421196696,0.84629776,1060.9,1056.8,0.61940663]
[1759421197092,0.16431409,1059.7,1056.8,0.61940663]
[1759421197397,0.84629776,1060.6,1056.9,0.61940663]
[1759421197591,0.16431409,1059.7,1056.9,0.61940663]
[1759421199399,0.16431409,1059.7,1056.7,0.61940663]
[1759421201594,0.16431409,1059.7,1056.8,0.61940663]
[1759421202296,0.16431409,1059.7,1056.7,0.61940663]
[1759421202599,0.16431409,1059.7,1056.9,0.61940663]
[1759421203705,0.16431409,1059.7,1057.0,0.61940663]
[1759421204804,0.16431409,1059.7,1056.9,0.61940663]
[1759421207302,0.16431409,1059.7,1057.0,0.61940663]
[1759421207707,0.84629776,1060.7,1057.0,0.61940663]
[1759421207904,0.16430323,1059.9,1057.0,0.61940663]
[1759421208503,0.16430323,1059.9,1057.1,0.61940663]
[1759421209103,0.16430323,1059.9,1057.2,0.61940663]
[1759421209307,0.84629776,1060.7,1057.2,0.61940663]
[1759421209505,0.84629776,1060.8,1057.3,0.61940663]
[1759421209802,0.16427686,1060.1,1057.3,0.61940663]
[1759421210906,0.16427686,1060.1,1057.2,0.61940663]
[1759421212306,0.16427686,1060.1,1057.3,0.61940663]
[1759421212508,0.16427686,1060.1,1057.2,0.61940663]
[1759421212808,0.16427686,1060.1,1057.3,0.61940663]
[1759421213807,0.16427686,1060.1,1057.2,0.61940663]
[1759421214308,0.16427686,1060.1,1057.3,0.61940663]
[1759421215412,0.16427686,1060.1,1057.4,0.61940663]
[1759421215710,0.16427686,1060.1,1057.3,0.61940663]
[1759421216106,0.16427686,1060.1,1057.2,0.61940663]
[1759421218308,0.16427686,1060.1,1057.3,0.61940663]
[1759421221414,0.16427686,1060.1,1057.4,0.61940663]
[1759421222314,0.16427686,1060.1,1057.5,0.61940663]
[1759421222611,0.16427686,1060.1,1057.6,0.61940663]
[1759421224817,0.16427686,1060.1,1057.5,0.61940663]
[1759421226219,0.16427686,1060.1,1057.6,0.61940663]
[1759421228319,0.16427686,1060.1,1057.7,0.61940663]
[1759421229523,0.16427686,1060.1,1057.8,0.61940663]
[1759421231322,0.16427686,1060.1,1057.9,0.61940663]
[1759421232426,0.16427686,1060.1,1058.0,0.61940663]
[1759421233928,0.16427686,1060.1,1057.9,0.61940663]
[1759421235325,0.16427686,1060.1,1058.0,0.61940663]
[1759421235926,0.16427686,1060.1,1058.0,0.62340663]
[1759421237326,0.16427686,1060.1,1058.1,1.69480235]
[1759421237625,1.01057462,1060.1,1058.1,2.31420898]
[1759421237828,1.01057462,1060.1,1058.2,0.61940663]
[1759421239833,0.16427686,1060.1,1058.2,0.61940663]
[1759421240234,1.01057462,1060.1,1058.2,0.61940663]
[1759421241631,0.16427686,1060.1,1058.2,0.61940663]
[1759421241833,1.01057462,1060.1,1058.2,0.61940663]
[1759421243436,0.84629776,1059.9,1058.2,0.61940663]
[1759421243634,0.84629776,1060.0,1058.2,0.61940663]
[1759421244231,0.84629776,1059.9,1058.2,0.61940663]
[1759421244435,0.84629776,1060.0,1058.2,0.61940663]
[1759421245534,0.84629776,1060.0,1058.3,0.61940663]
[1759421246436,1.01057462,1060.1,1058.2,0.61940663]
[1759421247336,0.84629776,1060.0,1058.2,0.61940663]
[1759421248537,0.84629776,1059.9,1058.2,0.61940663]
[1759421249336,0.84629776,1059.8,1058.1,1.69480235]
[1759421250837,0.84629776,1059.7,1058.1,1.69480235]
[1759421251737,0.84629776,1059.8,1058.1,1.69480235]
[1759421251940,0.84629776,1059.7,1058.1,1.69480235]
[1759421254540,0.84629776,1059.7,1058.1,2.31539223]
[1759421254740,0.84629776,1059.5,1058.1,1.69480235]
[1759421254940,0.84629776,1059.2,1058.1,1.69480235]
[1759421258044,0.84629776,1059.3,1058.1,1.69480235]
[1759421258458,0.84629776,1059.2,1058.1,1.69480235]
[1759421258645,0.84629776,1059.3,1058.1,1.69480235]
[1759421259145,0.84629776,1059.2,1058.1,1.69480235]
[1759421259342,0.84629776,1059.3,1058.1,1.69480235]
[1759421259841,0.84629776,1059.4,1058.1,1.69480235]
[1759421260546,0.84629776,1059.3,1058.1,1.69480235]
[1759421261143,0.84629776,1059.4,1058.1,1.69480235]
[1759421264046,0.84629776,1059.1,1058.1,1.69480235]
[1759421264242,0.84629776,1059.2,1058.1,1.69480235]
[1759421267351,0.84629776,1059.3,1058.1,1.69480235]
[1759421267650,0.84629776,1059.2,1058.1,1.69480235]
[1759421267946,0.84629776,1059.3,1058.1,1.69480235]
[1759421268849,0.84629776,1059.2,1058.1,1.69480235]
[1759421269750,0.84629776,1059.3,1058.1,1.69480235]
[1759421269951,0.84629776,1059.4,1058.1,1.69480235]
[1759421270249,0.84629776,1059.5,1058.1,1.69480235]
[1759421270453,0.84629776,1059.6,1058.1,1.69480235]
[1759421272052,0.84629776,1059.3,1058.1,1.69480235]
[1759421272655,0.84629776,1059.2,1058.1,1.69480235]
[1759421272954,0.84629776,1059.3,1058.1,1.69480235]
[1759421273554,0.84629776,1059.2,1058.1,1.69480235]
[1759421274352,0.84629776,1059.3,1058.1,1.69480235]
[1759421274751,0.84629776,1059.5,1058.1,1.69480235]
[1759421275356,0.84629776,1059.6,1058.1,1.69480235]
[1759421275760,0.84629776,1059.8,1058.1,1.69480235]
[1759421279662,0.84629776,1059.5,1058.1,1.69480235]
[1759421280263,0.84629776,1059.6,1058.1,1.69480235]
[1759421280563,0.84629776,1059.5,1058.1,1.69480235]
[1759421281461,0.84629776,1059.6,1058.1,1.69480235]
[1759421281659,0.84629776,1059.7,1058.1,1.69480235]
[1759421282565,0.84629776,1059.8,1058.1,1.69480235]
[1759421282865,0.84629776,1059.9,1058.1,1.69480235]
[1759421283964,0.84629776,1060.0,1058.1,2.31539223]
[1759421284967,1.01057462,1060.1,1058.1,2.31539223]
[1759421287364,0.16427686,1060.1,1058.1,2.31539223]
[1759421287666,0.16427686,1060.1,1058.1,1.69480235]
[1759421291475,0.16427686,1060.1,1058.1,2.31539223]
[1759421292571,0.16427686,1060.1,1058.1,1.69480235]
[1759421292971,0.16427686,1060.1,1058.1,2.31539223]
[1759421302482,0.16427686,1060.1,1058.1,1.69480235]
[1759421305286,0.84629776,1059.9,1058.1,1.69480235]
[1759421305587,0.84629776,1060.0,1058.1,1.69480235]
[1759421309492,1.01057462,1060.1,1058.1,1.69480235]
[1759421310089,0.16427686,1060.1,1058.1,1.69480235]
[1759421311487,0.16427686,1060.1,1058.1,2.31539223]
[1759421313487,0.16427686,1060.1,1058.1,1.69480235]
[1759421313690,0.16427686,1060.1,1058.1,2.31539223]
[1759421314189,0.16427686,1060.1,1058.1,1.69480235]
[1759421314390,0.84629776,1060.0,1058.1,1.69480235]
[1759421316088,0.84629776,1059.9,1058.1,1.69480235]
[1759421319590,0.84629776,1059.8,1058.1,1.69480235]
[1759421319894,0.84629776,1059.7,1058.1,1.69480235]
[1759421322594,0.84629776,1059.4,1058.1,1.69480235]
[1759421322793,0.84629776,1059.5,1058.1,1.69480235]
[1759421323193,0.84629776,1059.4,1058.1,1.69480235]
[1759421323693,0.84629776,1059.6,1058.1,1.69480235]
[1759421324096,0.84629776,1059.5,1058.1,1.69480235]
[1759421324694,0.84629776,1059.4,1058.1,1.69480235]
[1759421325498,0.84629776,1059.5,1058.1,1.69480235]
[1759421326499,0.84629776,1059.4,1058.1,1.69480235]
[1759421328202,0.84629776,1059.6,1058.1,1.69480235]
[1759421329204,0.84629776,1059.4,1058.1,1.69480235]
[1759421329399,0.84629776,1059.3,1058.1,1.69480235]
[1759421330202,0.84629776,1059.2,1058.1,1.69480235]
[1759421330402,0.84629776,1059.3,1058.1,1.69480235]
[1759421330905,0.16427686,1060.1,1058.1,1.69480235]
[1759421330906,0.84629776,1059.4,1058.1,1.69480235]
[1759421332006,0.84629776,1059.5,1058.1,1.69480235]
[1759421332302,0.84629776,1059.4,1058.1,1.69480235]
[1759421333410,0.84629776,1059.5,1058.1,1.69480235]
[1759421334409,0.84629776,1059.4,1058.1,1.69480235]
[1759421336307,0.84629776,1059.3,1058.1,1.69480235]
[1759421338114,0.84629776,1059.4,1058.1,1.69480235]
[1759421341317,0.84629776,1059.5,1058.1,1.69480235]
[1759421343518,0.84629776,1059.8,1058.1,1.69480235]
[1759421344616,0.84629776,1059.5,1058.1,1.69480235]
[1759421344815,0.84629776,1059.3,1058.1,1.69480235]
[1759421347618,0.84629776,1059.4,1058.1,1.69480235]
[1759421349224,0.84629776,1059.1,1058.1,1.69480235]
[1759421349919,0.84629776,1059.2,1058.1,1.69480235]
[1759421350419,0.84629776,1059.1,1058.1,1.69480235]
[1759421352623,0.84629776,1059.2,1058.1,1.69480235]
[1759421352823,0.84629776,1059.1,1058.1,1.69480235]
[1759421353321,0.16427686,1060.1,1058.1,1.69480235]
[1759421353322,0.84629776,1059.2,1058.1,1.69480235]
[1759421354824,0.84629776,1059.5,1058.1,1.69480235]
[1759421357227,0.84629776,1059.4,1058.1,1.69480235]
[1759421357623,0.84629776,1059.3,1058.1,1.69480235]
[1759421357825,0.84629776,1059.2,1058.1,1.69480235]
[1759421358026,0.84629776,1059.1,1058.1,1.69480235]
[1759421358224,0.84629776,1059.1,1058.0,0.004]
[1759421358225,0.84629776,1059.0,1056.8,0.62735838]
[1759421358426,0.84629776,1059.0,1058.2,1.69711464]
[1759421359829,0.84629776,1059.0,1056.8,0.62058988]
[1759421360330,0.84629776,1059.0,1056.9,1.72588798]
[1759421360530,0.84629776,1059.0,1056.9,1.72988798]
[1759421360931,0.84629776,1059.5,1056.9,1.72988798]
[1759421361732,0.84629776,1059.4,1056.9,1.72988798]
[1759421363529,0.84629776,1058.8,1056.9,1.72988798]
[1759421364430,0.84629776,1058.9,1056.9,1.72988798]
[1759421369331,0.84629776,1059.0,1056.9,1.72988798]
[1759421369735,0.84629776,1058.9,1056.9,1.72988798]
[1759421370134,0.84629776,1059.0,1056.9,1.72988798]
[1759421371337,0.84629776,1058.7,1056.9,1.72988798]
[1759421371737,0.84629776,1058.5,1056.9,1.72988798]
[1759421372133,0.84629776,1058.4,1056.9,1.72988798]
[1759421373236,0.84629776,1058.5,1056.9,1.72988798]
[1759421373540,0.84629776,1058.4,1056.9,1.72988798]
[1759421374136,0.84629776,1058.7,1056.9,1.72988798]
[1759421374636,0.84629776,1058.8,1056.9,1.72988798]
[1759421375240,0.84629776,1058.5,1056.9,1.72988798]
[1759421376837,0.84629776,1058.6,1056.9,1.72988798]
[1759421377240,0.84629776,1058.5,1056.9,1.72988798]
[1759421377739,0.84629776,1058.6,1056.9,1.72988798]
[1759421378237,0.84629776,1058.5,1056.9,1.72988798]
[1759421378538,0.84629776,1058.6,1056.9,1.72988798]
[1759421379938,1.2694466,1058.8,1056.9,1.72988798]
[1759421379939,0.84629776,1058.5,1056.9,1.72988798]
[1759421381343,0.84629776,1058.4,1056.9,1.72988798]
[1759421381542,0.84629776,1058.5,1056.9,1.72988798]
[1759421381741,1.2694466,1058.8,1056.9,1.72988798]
[1759421381742,0.84629776,1058.6,1056.9,1.72988798]
[1759421381941,0.84629776,1058.7,1056.9,1.72988798]
[1759421382740,0.84629776,1058.6,1056.9,1.72988798]
[1759421383340,0.84629776,1058.7,1056.9,1.72988798]
[1759421386641,0.84629776,1058.8,1056.9,1.72988798]
[1759421386844,0.84629776,1059.2,1056.9,1.72988798]
[1759421387145,0.84629776,1059.3,1056.9,1.72988798]
[1759421387545,0.84629776,1059.2,1056.9,1.72988798]
[1759421388543,0.84629776,1059.1,1056.9,1.72988798]
[1759421389047,0.84629776,1058.9,1056.9,1.72988798]
[1759421389248,0.84629776,1058.9,1056.9,2.3534857]
[1759421390249,0.84629776,1058.8,1056.9,2.3534857]
[1759421391650,0.84629776,1058.9,1056.9,2.3534857]
[1759421391944,0.84629776,1058.9,1057.1,0.62359772]
[1759421392949,0.84629776,1058.9,1057.0,0.62359772]
[1759421394049,0.84629776,1058.8,1057.0,0.62359772]
[1759421394451,0.84629776,1058.9,1057.0,0.62359772]
[1759421394749,0.84629776,1058.8,1057.1,0.62359772]
[1759421395155,0.84629776,1058.9,1057.1,0.62359772]
[1759421395553,0.84629776,1058.8,1057.0,0.62359772]
[1759421395751,0.84629776,1058.8,1056.9,1.72988798]
[1759421395752,0.84629776,1058.8,1057.1,0.62359772]
[1759421395951,0.84629776,1058.8,1057.0,0.62359772]
[1759421396155,0.84629776,1058.8,1057.1,0.62359772]
[1759421396754,0.84629776,1058.9,1057.1,0.62359772]
[1759421398154,0.84629776,1058.9,1057.2,0.62359772]
[1759421398856,0.84629776,1059.0,1057.1,0.62359772]
[1759421399358,0.84629776,1059.0,1057.2,0.62359772]
[1759421400058,0.84629776,1059.1,1057.2,0.62359772]
[1759421400659,0.84629776,1059.0,1057.2,0.62359772]
[1759421400855,0.84629776,1059.0,1057.3,0.62359772]
[1759421401555,0.84629776,1059.0,1057.3,0.62470116]
[1759421401862,0.84629776,1059.0,1057.4,1.7124894]
[1759421403657,0.84629776,1059.1,1057.4,1.7124894]
[1759421403860,0.84629776,1059.0,1057.4,1.7124894]
[1759421404654,0.84629776,1059.1,1057.4,1.7124894]
[1759421406262,0.84629776,1059.2,1057.4,1.7124894]
[1759421408666,0.84629776,1059.1,1057.4,1.7124894]
[1759421408869,0.84629776,1059.0,1057.4,1.7124894]
[1759421409870,0.16443521,1058.8,1057.4,1.7124894]
[1759421410366,0.84629776,1059.0,1057.4,1.7124894]
[1759421410567,0.84629776,1059.0,1057.4,2.33719056]
[1759421411367,1.01071472,1059.1,1057.4,2.33719056]
[1759421413366,0.16441696,1059.1,1057.6,0.62470116]
[1759421413972,0.84629776,1059.2,1057.6,0.62470116]
[1759421414372,1.01067938,1059.3,1057.6,0.62470116]
[1759421414771,0.16438162,1059.3,1057.6,0.62470116]
[1759421414966,0.16438162,1059.3,1057.7,0.62470116]
[1759421415371,0.16438162,1059.3,1057.6,0.62470116]
[1759421415770,0.16438162,1059.3,1057.7,0.62470116]
[1759421416372,0.16438162,1059.3,1057.6,0.62470116]
[1759421418374,0.16438162,1059.3,1057.5,0.62470116]
[1759421420276,1.01067938,1059.3,1057.4,2.33719056]
[1759421421580,0.16438162,1059.3,1057.4,1.7124894]
[1759421423882,0.16438162,1059.3,1057.4,2.33719056]
[1759421424080,0.16438162,1059.3,1057.6,0.62470116]
[1759421424382,0.84629776,1059.5,1057.6,0.62470116]
[1759421424581,0.16437386,1059.5,1057.6,0.62470116]
[1759421429581,0.16437386,1059.5,1057.7,0.62470116]
[1759421431285,0.16437386,1059.5,1057.6,0.62470116]
[1759421431486,0.84629776,1059.9,1057.6,0.62470116]
[1759421431686,0.16433854,1059.6,1057.7,0.62470116]
[1759421439691,0.16433854,1059.6,1057.6,0.62470116]
[1759421443591,1.0106363,1059.6,1057.6,0.62470116]
[1759421444392,0.16433854,1059.6,1057.5,0.62470116]
[1759421444593,0.16433854,1059.6,1057.6,0.62470116]
[1759421445993,0.16433854,1059.6,1057.7,0.62470116]
[1759421446997,0.16433854,1059.6,1057.8,0.62470116]
[1759421447597,0.16433854,1059.6,1057.9,0.62470116]
[1759421449097,0.84629776,1059.8,1057.9,0.62470116]
[1759421449295,0.16431642,1059.7,1057.9,0.62470116]
[1759421451098,0.84629776,1060.0,1058.0,0.62470116]
[1759421451293,0.16430168,1059.9,1058.0,0.62470116]
[1759421451496,0.16430168,1059.9,1058.2,0.62470116]
[1759421451699,0.84629776,1060.3,1058.3,0.62470116]
[1759421451893,0.16427182,1060.2,1058.3,0.62470116]
[1759421454703,0.16427182,1060.2,1058.4,0.62470116]
[1759421455298,0.16427182,1060.2,1058.3,0.62470116]
[1759421456300,0.84629776,1060.9,1058.1,0.62470116]
[1759421456605,0.1642288,1060.4,1058.2,0.62470116]
[1759421457302,0.1642288,1060.4,1058.3,0.62470116]
[1759421459304,1.01052656,1060.4,1058.4,0.62470116]
[1759421461300,0.1642288,1060.4,1058.3,0.62470116]
[1759421462000,0.1642288,1060.4,1058.2,0.62470116]
[1759421462505,1.01052656,1060.4,1058.2,0.62470116]
[1759421463703,1.01052656,1060.4,1058.3,0.62470116]
[1759421464602,1.01052656,1060.4,1058.2,0.62470116]
[1759421464905,1.01052656,1060.4,1058.3,0.62470116]
[1759421465102,1.01052656,1060.4,1058.2,0.62470116]
[1759421467804,0.1642288,1060.4,1058.3,0.62470116]
[1759421468005,0.1642288,1060.4,1058.4,0.62470116]
[1759421468908,0.1642288,1060.4,1058.5,0.62470116]
[1759421470614,0.1642288,1060.4,1058.6,0.62470116]
[1759421470815,0.84629776,1060.7,1058.6,0.62470116]
[1759421471013,0.16418115,1060.7,1058.7,0.62470116]
[1759421475321,0.16418115,1060.7,1058.6,0.62470116]
[1759421476119,0.16418115,1060.7,1058.5,0.62470116]
[1759421478719,0.16418115,1060.7,1058.6,0.62470116]
[1759421481420,0.16418115,1060.7,1058.5,0.62470116]
[1759421481626,0.16418115,1060.7,1058.4,0.62470116]
[1759421482225,0.16418115,1060.7,1058.5,0.62470116]
[1759421482423,0.16418115,1060.7,1058.7,0.62470116]
[1759421483222,0.84629776,1061.1,1058.7,0.62470116]
[1759421483425,0.84629776,1061.5,1058.8,0.62470116]
[1759421483622,0.16414514,1060.9,1058.8,0.62470116]
[1759421484223,0.84629776,1061.3,1058.8,0.62470116]
[1759421484425,0.84629776,1061.5,1058.6,0.62470116]
[1759421484627,0.16414204,1060.8,1058.6,0.62470116]
[1759421486029,0.16414204,1060.8,1058.5,0.62470116]
[1759421486724,0.16414204,1060.8,1058.6,0.62470116]
[1759421487627,0.16414204,1060.8,1058.5,0.62470116]
[1759421488638,0.16414204,1060.8,1058.8,0.62470116]
[1759421493335,0.16414204,1060.8,1058.7,0.62470116]
[1759421495940,1.0104398,1060.8,1058.3,0.62470116]
[1759421496941,0.16414204,1060.8,1058.3,0.62470116]
[1759421500542,1.0104398,1060.8,1058.4,0.62470116]
[1759421500842,0.84629776,1060.7,1058.4,0.62470116]
[1759421501341,0.84629776,1060.7,1058.5,0.62470116]
[1759421502446,0.84629776,1060.6,1058.5,0.62470116]
[1759421502742,0.84629776,1060.7,1058.5,0.62470116]
[1759421503447,0.84629776,1060.6,1058.5,0.62470116]
[1759421504749,0.84629776,1060.7,1058.6,0.62470116]
[1759421505346,0.84629776,1060.7,1058.8,0.62470116]
[1759421505750,0.16414204,1060.8,1058.9,0.62470116]
[1759421506547,0.16414204,1060.8,1059.0,0.62470116]
[1759421506847,0.84629776,1061.1,1059.0,0.62470116]